fUSD/lending_fUSD_20240519
["ID","MTS","AMOUNT","RATE_DAILY","PERIOD"]
[327504752,1716129033752,-500.0,0.00043835,30]
[327504753,1716129033761,-500.0,0.00043835,30]
[327504754,1716129033771,-500.0,0.00043835,30]
[327504755,1716129033780,-500.0,0.00043835,30]
[327504756,1716129033789,-500.0,0.00043835,30]
[327504757,1716129033799,-386.82178024,0.00043835,30]
[327504758,1716129033809,-510.07328372,0.00043835,30]
[327504759,1716129033818,-514.12215114,0.00043835,30]
[327504760,1716129033828,-500.0,0.00043835,30]
[327504761,1716129033837,-500.0,0.00043835,30]
[327504762,1716129033847,-500.0,0.00043835,30]
[327504763,1716129033857,-500.0,0.00043835,30]
[327504764,1716129033866,-500.0,0.00043835,30]
[327504765,1716129033875,-500.0,0.00043835,30]
[327504766,1716129033888,-500.0,0.00043835,30]
[327504767,1716129033898,-500.0,0.00043835,30]
[327504768,1716129033907,-500.0,0.00043835,30]
[327504769,1716129033917,-500.0,0.00043835,30]
[327504770,1716129033927,-500.0,0.00043835,30]
[327504771,1716129033946,-500.0,0.00043835,30]
[327504772,1716129033956,-500.0,0.00043835,30]
[327504773,1716129033966,-500.0,0.00043835,30]
[327504774,1716129033976,-891.37,0.00043835,30]
[327504775,1716129033986,-891.37,0.00043835,30]
[327504776,1716129033995,-891.37,0.00043835,30]
[327504777,1716129034005,-500.0,0.00043835,30]
[327504778,1716129034015,-891.37,0.00043835,30]
[327504779,1716129034025,-891.37,0.00043835,30]
[327504780,1716129034035,-184.08539219,0.00043835,30]
[327504781,1716129034046,-500.0,0.00043835,30]
[327504782,1716129034056,-500.0,0.00043835,30]
[327504783,1716129034066,-150.0,0.00043835,30]
[327504784,1716129034076,-500.0,0.00043835,30]
[327504785,1716129034086,-150.0,0.00043835,30]
[327504786,1716129034096,-150.0,0.00043835,30]
[327504787,1716129034106,-150.0,0.00043835,30]
[327504788,1716129034116,-185.82,0.00043835,30]
[327504789,1716129034126,-500.0,0.00043835,30]
[327504790,1716129034139,-500.0,0.00043835,30]
[327504791,1716129034149,-500.0,0.00043835,30]
[327504792,1716129034159,-500.0,0.00043835,30]
[327504793,1716129034170,-500.0,0.00043835,30]
[327504794,1716129034180,-500.0,0.00043835,30]
[327504795,1716129034190,-500.0,0.00043835,30]
[327504796,1716129034200,-500.0,0.00043835,30]
[327504797,1716129034209,-500.0,0.00043835,30]
[327504798,1716129034219,-500.0,0.00043835,30]
[327504799,1716129034229,-500.0,0.00043835,30]
[327504800,1716129034239,-500.0,0.00043835,30]
[327504801,1716129034249,-500.0,0.00043835,30]
[327504802,1716129034258,-315.64,0.00043835,30]
[327504803,1716129034268,-500.0,0.00043835,30]
[327504804,1716129034278,-174.07725793,0.00043835,30]
[327504805,1716129034289,-500.0,0.00043835,30]
[327504806,1716129034299,-500.0,0.00043835,30]
[327504807,1716129034308,-500.0,0.00043835,30]
[327504808,1716129034318,-500.0,0.00043835,30]
[327504809,1716129034328,-500.0,0.00043835,30]
[327504810,1716129034338,-500.0,0.00043835,30]
[327504811,1716129034348,-500.0,0.00043835,30]
[327504812,1716129034358,-500.0,0.00043835,30]
[327504813,1716129034369,-500.0,0.00043835,30]
[327504814,1716129034382,-500.0,0.00043835,30]
[327504815,1716129034395,-500.0,0.00043835,30]
[327504816,1716129034404,-500.0,0.00043835,30]
[327504817,1716129034415,-500.0,0.00043835,30]
[327504818,1716129034424,-500.0,0.00043835,30]
[327504819,1716129034434,-500.0,0.00043835,30]
[327504820,1716129034443,-500.0,0.00043835,30]
[327504821,1716129034455,-500.0,0.00043835,30]
[327504822,1716129034466,-500.0,0.00043835,30]
[327504823,1716129034476,-500.0,0.00043835,30]
[327504824,1716129034485,-500.0,0.00043835,30]
[327504825,1716129034495,-500.0,0.00043835,30]
[327504826,1716129034504,-500.0,0.00043835,30]
[327504827,1716129034514,-414.44,0.00043835,30]
[327504828,1716129034524,-500.0,0.00043835,30]
[327504829,1716129034534,-500.0,0.00043835,30]
[327504830,1716129034544,-500.0,0.00043835,30]
[327504831,1716129034553,-301.12,0.00043835,30]
[327504832,1716129034563,-516.68346631,0.00043835,30]
[327504833,1716129034573,-254.30894129,0.00043835,30]
[327504834,1716129034583,-500.0,0.00043835,30]
[327504835,1716129034593,-500.0,0.00043835,30]
[327504836,1716129034603,-619.89,0.00043835,30]
[327504837,1716129034613,-500.0,0.00043835,30]
[327504838,1716129034623,-500.0,0.00043835,30]
[327504839,1716129034634,-500.0,0.00043835,30]
[327504840,1716129034643,-500.0,0.00043835,30]
[327504841,1716129034654,-500.0,0.00043835,30]
[327504842,1716129034664,-500.0,0.00043835,30]
[327504843,1716129034674,-343.69,0.00043835,30]
[327504844,1716129034683,-500.0,0.00043835,30]
[327504845,1716129034693,-500.0,0.00043835,30]
[327504846,1716129034702,-500.0,0.00043835,30]
[327504847,1716129034712,-500.0,0.00043835,30]
[327504848,1716129034722,-500.0,0.00043835,30]
[327504849,1716129034731,-500.0,0.00043835,30]
[327504850,1716129034741,-500.0,0.00043835,30]
[327504851,1716129034751,-500.0,0.00043835,30]
[327504852,1716129034760,-500.0,0.00043835,30]
[327504853,1716129034770,-500.0,0.00043835,30]
[327504854,1716129034780,-473.58,0.00043835,30]
[327504855,1716129034789,-500.0,0.00043835,30]
[327504856,1716129034799,-500.0,0.00043835,30]
[327504857,1716129034808,-500.0,0.00043835,30]
[327504858,1716129034818,-500.0,0.00043835,30]
[327504859,1716129034828,-500.0,0.00043835,30]
[327504860,1716129034838,-500.0,0.00043835,30]
[327504861,1716129034848,-500.0,0.00043835,30]
[327504862,1716129034862,-500.0,0.00043835,30]
[327504863,1716129034872,-500.0,0.00043835,30]
[327504864,1716129034883,-500.0,0.00043835,30]
[327504865,1716129034894,-347.83,0.00043835,30]
[327504866,1716129034905,-500.0,0.00043835,30]
[327504867,1716129034915,-500.0,0.00043835,30]
[327504868,1716129034925,-500.0,0.00043835,30]
[327504869,1716129034935,-500.0,0.00043835,30]
[327504870,1716129034945,-500.0,0.00043835,30]
[327504871,1716129034955,-500.0,0.00043835,30]
[327504872,1716129034965,-500.0,0.00043835,30]
[327504873,1716129034975,-500.0,0.00043835,30]
[327504874,1716129035177,-370.57,0.00043835,30]
[327504875,1716129035203,-500.0,0.00043835,30]
[327504876,1716129035213,-500.0,0.00043835,30]
[327504877,1716129035223,-500.0,0.00043835,30]
[327504878,1716129035233,-458.34,0.00043835,30]
[327504879,1716129035243,-500.0,0.00043835,30]
[327504880,1716129035253,-500.0,0.00043835,30]
[327504881,1716129035263,-500.0,0.00043835,30]
[327504882,1716129035272,-500.0,0.00043835,30]
[327504883,1716129035282,-500.0,0.00043835,30]
[327504884,1716129035292,-500.0,0.00043835,30]
[327504885,1716129035301,-500.0,0.00043835,30]
[327504886,1716129035311,-348.95,0.00043835,30]
[327504887,1716129035321,-500.0,0.00043835,30]
[327504888,1716129035330,-500.0,0.00043835,30]
[327504889,1716129035339,-500.0,0.00043835,30]
[327504890,1716129035349,-500.0,0.00043835,30]
[327504891,1716129035359,-500.0,0.00043835,30]
[327504892,1716129035368,-500.0,0.00043835,30]
[327504893,1716129035383,-500.0,0.00043835,30]
[327504894,1716129035395,-500.0,0.00043835,30]
[327504895,1716129035405,-500.0,0.00043835,30]
[327504896,1716129035415,-262.9101174,0.00043835,30]
[327504897,1716129035425,-500.0,0.00043835,30]
[327504898,1716129035436,-500.0,0.00043835,30]
[327504899,1716129035446,-500.0,0.00043835,30]
[327504900,1716129035459,-500.0,0.00043835,30]
[327504901,1716129035469,-500.0,0.00043835,30]
[327504902,1716129035479,-500.0,0.00043835,30]
[327504903,1716129035490,-500.0,0.00043835,30]
[327504904,1716129035500,-500.0,0.00043835,30]
[327504905,1716129035511,-500.0,0.00043835,30]
[327504906,1716129035520,-500.0,0.00043835,30]
[327504907,1716129035531,-500.0,0.00043835,30]
[327504908,1716129035540,-259.4,0.00043835,30]
[327504909,1716129035550,-500.0,0.00043835,30]
[327504910,1716129035560,-500.0,0.00043835,30]
[327504911,1716129035570,-522.56018318,0.00043835,30]
[327504912,1716129035581,-500.0,0.00043835,30]
[327504913,1716129035591,-500.0,0.00043835,30]
[327504914,1716129035602,-500.0,0.00043835,30]
[327504915,1716129035612,-500.0,0.00043835,30]
[327504916,1716129035624,-500.0,0.00043835,30]
[327504917,1716129035635,-500.0,0.00043835,30]
[327504918,1716129035651,-217.96,0.00043835,30]
[327504919,1716129035661,-526.1107459,0.00043835,30]
[327504920,1716129035671,-604.63,0.00043835,30]
[327504921,1716129035680,-500.0,0.00043835,30]
[327504922,1716129035691,-500.0,0.00043835,30]
[327504923,1716129035700,-500.0,0.00043835,30]
[327504924,1716129035710,-500.0,0.00043835,30]
[327504925,1716129035720,-500.0,0.00043835,30]
[327504926,1716129035730,-500.0,0.00043835,30]
[327504927,1716129035740,-500.0,0.00043835,30]
[327504928,1716129035750,-500.0,0.00043835,30]
[327504929,1716129035760,-500.0,0.00043835,30]
[327504930,1716129035770,-500.0,0.00043835,30]
[327504931,1716129035781,-500.0,0.00043835,30]
[327504932,1716129035791,-500.0,0.00043835,30]
[327504933,1716129035803,-500.0,0.00043835,30]
[327504934,1716129035814,-500.0,0.00043835,30]
[327504935,1716129035825,-500.0,0.00043835,30]
[327504936,1716129035835,-584.84,0.00043835,30]
[327504937,1716129035845,-500.0,0.00043835,30]
[327504938,1716129035854,-500.0,0.00043835,30]
[327504939,1716129035864,-500.0,0.00043835,30]
[327504940,1716129035874,-500.0,0.00043835,30]
[327504941,1716129035884,-500.0,0.00043835,30]
[327504942,1716129035898,-596.32,0.00043835,30]
[327504943,1716129035907,-500.0,0.00043835,30]
[327504944,1716129035917,-500.0,0.00043835,30]
[327504945,1716129035926,-500.0,0.00043835,30]
[327504946,1716129035935,-170.23,0.00043835,30]
[327504947,1716129035943,-528.55761688,0.00043835,30]
[327504948,1716129035953,-166.37049657,0.00043835,30]
[327504949,1716129035962,-500.0,0.00043835,30]
[327504950,1716129035971,-500.0,0.00043835,30]
[327504951,1716129035982,-500.0,0.00043835,30]
[327504952,1716129035992,-500.0,0.00043835,30]
[327504953,1716129036002,-500.0,0.00043835,30]
[327504954,1716129036012,-500.0,0.00043835,30]
[327504955,1716129036022,-500.0,0.00043835,30]
[327504956,1716129036032,-500.0,0.00043835,30]
[327504957,1716129036043,-171.38,0.00043835,30]
[327504958,1716129036052,-500.0,0.00043835,30]
[327504959,1716129036063,-500.0,0.00043835,30]
[327504960,1716129036072,-500.0,0.00043835,30]
[327504961,1716129036082,-336.05,0.00043835,30]
[327504962,1716129036092,-500.0,0.00043835,30]
[327504963,1716129036102,-500.0,0.00043835,30]
[327504964,1716129036112,-500.0,0.00043835,30]
[327504965,1716129036122,-500.0,0.00043835,30]
[327504966,1716129036131,-500.0,0.00043835,30]
[327504967,1716129036144,-500.0,0.00043835,30]
[327504968,1716129036155,-500.0,0.00043835,30]
[327504969,1716129036165,-500.0,0.00043835,30]
[327504970,1716129036176,-500.0,0.00043835,30]
[327504971,1716129036185,-500.0,0.00043835,30]
[327504972,1716129036196,-500.0,0.00043835,30]
[327504973,1716129036206,-500.0,0.00043835,30]
[327504974,1716129036216,-502.34161962,0.00043835,30]
[327504975,1716129036226,-504.73335963,0.00043835,30]
[327504976,1716129036237,-500.0,0.00043835,30]
[327504977,1716129036247,-500.0,0.00043835,30]
[327504978,1716129036257,-413.2045561,0.00043835,30]
[327504979,1716129036267,-500.0,0.00043835,30]
[327504980,1716129036276,-500.0,0.00043835,30]
[327504981,1716129036286,-509.58140271,0.00043835,30]
[327504982,1716129036295,-500.0,0.00043835,30]
[327504983,1716129036305,-500.0,0.00043835,30]
[327504984,1716129036314,-500.0,0.00043835,30]
[327504985,1716129036323,-500.0,0.00043835,30]
[327504986,1716129036333,-570.2,0.00043835,30]
[327504987,1716129036343,-500.0,0.00043835,30]
[327504988,1716129036353,-500.0,0.00043835,30]
[327504989,1716129036363,-716.65,0.00043835,30]
[327504990,1716129036373,-716.65,0.00043835,30]
[327504991,1716129036389,-716.65,0.00043835,30]
[327504992,1716129036398,-500.0,0.00043835,30]
[327504993,1716129036407,-716.65,0.00043835,30]
[327504994,1716129036418,-500.0,0.00043835,30]
[327504995,1716129036428,-500.0,0.00043835,30]
[327504996,1716129036438,-500.0,0.00043835,30]
[327504997,1716129036448,-500.0,0.00043835,30]
[327504998,1716129036457,-500.0,0.00043835,30]
[327504999,1716129036469,-500.0,0.00043835,30]
[327505000,1716129036479,-500.0,0.00043835,30]
[327505001,1716129036488,-500.0,0.00043835,30]
[327505002,1716129036498,-500.0,0.00043835,30]
[327505003,1716129036508,-500.0,0.00043835,30]
[327505004,1716129036518,-500.0,0.00043835,30]
[327505005,1716129036527,-500.0,0.00043835,30]
[327505006,1716129036537,-500.0,0.00043835,30]
[327505007,1716129036547,-500.0,0.00043835,30]
[327505008,1716129036557,-500.0,0.00043835,30]
[327505009,1716129036567,-500.0,0.00043835,30]
[327505010,1716129036577,-500.0,0.00043835,30]
[327505011,1716129036587,-500.0,0.00043835,30]
[327505012,1716129036597,-500.0,0.00043835,30]
[327505013,1716129036606,-500.0,0.00043835,30]
[327505014,1716129036616,-513.68,0.00043835,30]
[327505015,1716129036626,-500.0,0.00043835,30]
[327505016,1716129036639,-500.0,0.00043835,30]
[327505017,1716129036648,-525.39,0.00043835,30]
[327505018,1716129036657,-500.0,0.00043835,30]
[327505019,1716129036667,-500.0,0.00043835,30]
[327505020,1716129036676,-259.17,0.00043835,30]
[327505021,1716129036685,-500.0,0.00043835,30]
[327505022,1716129036695,-500.0,0.00043835,30]
[327505023,1716129036704,-500.0,0.00043835,30]
[327505024,1716129036713,-605.62,0.00043835,30]
[327505025,1716129036723,-500.0,0.00043835,30]
[327505026,1716129036734,-500.0,0.00043835,30]
[327505027,1716129036743,-500.0,0.00043835,30]
[327505028,1716129036753,-500.0,0.00043835,30]
[327505029,1716129036763,-160.7,0.00043835,30]
[327505030,1716129036772,-500.0,0.00043835,30]
[327505031,1716129036782,-500.0,0.00043835,30]
[327505032,1716129036791,-351.19,0.00043835,30]
[327505033,1716129036800,-500.0,0.00043835,30]
[327505034,1716129036810,-500.0,0.00043835,30]
[327505035,1716129036819,-500.0,0.00043835,30]
[327505036,1716129036829,-500.0,0.00043835,30]
[327505037,1716129036839,-500.0,0.00043835,30]
[327505038,1716129036850,-500.0,0.00043835,30]
[327505039,1716129036860,-500.0,0.00043835,30]
[327505040,1716129036870,-544.78540979,0.00043835,30]
[327505041,1716129036879,-500.0,0.00043835,30]
[327505042,1716129036891,-500.0,0.00043835,30]
[327505043,1716129036901,-500.0,0.00043835,30]
[327505044,1716129036911,-500.0,0.00043835,30]
[327505045,1716129036921,-500.0,0.00043835,30]
[327505046,1716129036931,-500.0,0.00043835,30]
[327505047,1716129036941,-561.07,0.00043835,30]
[327505048,1716129036950,-500.0,0.00043835,30]
[327505049,1716129036960,-511.19,0.00043835,30]
[327505050,1716129036970,-638.97580715,0.00043835,30]
[327505051,1716129036979,-500.0,0.00043835,30]
[327505052,1716129036989,-500.0,0.00043835,30]
[327505053,1716129036998,-500.0,0.00043835,30]
[327505054,1716129037009,-500.0,0.00043835,30]
[327505055,1716129037020,-500.0,0.00043835,30]
[327505056,1716129037029,-500.0,0.00043835,30]
[327505057,1716129037039,-500.0,0.00043835,30]
[327505058,1716129037049,-500.0,0.00043835,30]
[327505059,1716129037058,-500.0,0.00043835,30]
[327505060,1716129037068,-609.5,0.00043835,30]
[327505061,1716129037077,-500.0,0.00043835,30]
[327505062,1716129037087,-500.0,0.00043835,30]
[327505063,1716129037097,-500.0,0.00043835,30]
[327505064,1716129037107,-500.0,0.00043835,30]
[327505065,1716129037118,-500.0,0.00043835,30]
[327505066,1716129037128,-500.0,0.00043835,30]
[327505067,1716129037139,-500.0,0.00043835,30]
[327505068,1716129037149,-500.0,0.00043835,30]
[327505069,1716129037158,-500.0,0.00043835,30]
[327505070,1716129037170,-342.79,0.00043835,30]
[327505071,1716129037180,-336.74865539,0.00043835,30]
[327505072,1716129037190,-564.21,0.00043835,30]
[327505073,1716129037200,-500.0,0.00043835,30]
[327505074,1716129037210,-500.0,0.00043835,30]
[327505075,1716129037219,-500.0,0.00043835,30]
[327505076,1716129037229,-500.0,0.00043835,30]
[327505077,1716129037239,-514.76,0.00043835,30]
[327505078,1716129037249,-500.0,0.00043835,30]
[327505079,1716129037259,-500.0,0.00043835,30]
[327505080,1716129037268,-500.0,0.00043835,30]
[327505081,1716129037278,-500.0,0.00043835,30]
[327505082,1716129037288,-420.46608829,0.00043835,30]
[327505083,1716129037297,-507.18940564,0.00043835,30]
[327505084,1716129037307,-500.0,0.00043835,30]
[327505085,1716129037316,-500.0,0.00043835,30]
[327505086,1716129037326,-500.0,0.00043835,30]
[327505087,1716129037336,-528.38245458,0.00043835,30]
[327505088,1716129037345,-500.0,0.00043835,30]
[327505089,1716129037354,-500.0,0.00043835,30]
[327505090,1716129037364,-500.0,0.00043835,30]
[327505091,1716129037377,-500.0,0.00043835,30]
[327505092,1716129037387,-500.0,0.00043835,30]
[327505093,1716129037397,-585.99193676,0.00043835,4]
[327505094,1716129037407,-500.0,0.00043835,30]
[327505095,1716129037418,-500.0,0.00043835,30]
[327505096,1716129037427,-500.0,0.00043835,30]
[327505097,1716129037437,-462.04,0.00043835,30]
[327505098,1716129037447,-566.4,0.00043835,30]
[327505099,1716129037459,-500.0,0.00043835,30]
[327505100,1716129037468,-500.0,0.00043835,30]
[327505101,1716129037478,-500.0,0.00043835,30]
[327505102,1716129037488,-500.0,0.00043835,30]
[327505103,1716129037498,-500.0,0.00043835,30]
[327505104,1716129037508,-500.0,0.00043835,30]
[327505105,1716129037517,-500.0,0.00043835,30]
[327505106,1716129037527,-500.0,0.00043835,30]
[327505107,1716129037536,-500.0,0.00043835,30]
[327505108,1716129037545,-474.23129653,0.00043835,30]
[327505109,1716129037641,-25.76870347,0.00043835,30]
[327505110,1716129037650,-1000.0,0.00043836,60]
[327505111,1716129037659,-431.9242795,0.00043836,60]
[327505112,1716129037673,-568.0757205,0.00043836,60]
[327505113,1716129037683,-1000.0,0.00043836,60]
[327505114,1716129037693,-398.99,0.00043859,2]
[327505115,1716129037702,-3400.0,0.000439,16]
[327505116,1716129037712,-1000.0,0.00043987,120]
[327505117,1716129037721,-5000.0,0.00044,120]
[327505118,1716129037731,-5708.7696777,0.00044,30]
[327505119,1716129037741,-1062.07246534,0.000441,10]
[327505120,1716129037751,-1117.39276806,0.000441,10]
[327505121,1716129037761,-4500.0,0.000442,16]
[327505122,1716129037771,-200.0,0.00044265,120]
[327505123,1716129037780,-5700.0,0.000443,16]
[327505124,1716129037790,-1100.0,0.000444,16]
[327505125,1716129037800,-2500.0,0.000445,120]
[327505126,1716129037809,-1100.0,0.000445,16]
[327505127,1716129037819,-221.78466121,0.00044549,3]
[327505128,1716129037828,-1100.0,0.000446,16]
[327505129,1716129037838,-500.0,0.00044639,30]
[327505130,1716129037848,-1100.0,0.000447,16]
[327505131,1716129037857,-338.2504887,0.00044773,2]
[327505132,1716129037867,-867.64194106,0.000448,20]
[327505133,1716129037877,-1500.0,0.000448,16]
[327505134,1716129037888,-867.64194102,0.00044809,20]
[327505135,1716129037898,-867.64194102,0.00044818,20]
[327505136,1716129037908,-867.64194102,0.00044827,20]
[327505137,1716129037917,-867.64194102,0.00044836,20]
[327505138,1716129037927,-338.25048868,0.00044837,2]
[327505139,1716129037937,-867.64194102,0.00044845,20]
[327505140,1716129037947,-867.64194102,0.00044855,20]
[327505141,1716129037956,-867.64194102,0.00044864,20]
[327505142,1716129037966,-1430.54396451,0.00044868,120]
[327505143,1716129037977,-330.99,0.00044869,30]
[327505144,1716129037987,-382.65,0.00044869,30]
[327505145,1716129037997,-716.65,0.00044869,30]
[327505146,1716129038007,-716.65,0.00044869,30]
[327505147,1716129038017,-716.65,0.00044869,30]
[327505148,1716129038027,-500.0,0.00044869,30]
[327505149,1716129038038,-500.0,0.00044869,30]
[327505150,1716129038048,-500.0,0.00044869,30]
[327505151,1716129038057,-500.0,0.00044869,30]
[327505152,1716129038067,-196.01,0.00044869,30]
[327505153,1716129038077,-500.0,0.00044869,30]
[327505154,1716129038086,-500.0,0.00044869,30]
[327505155,1716129038096,-500.0,0.00044869,30]
[327505156,1716129038105,-200315.99470458,0.0004487,30]
[327505157,1716129038118,-415.09721781,0.0004487,30]
[327505158,1716129038129,-86624.1230411,0.0004487,30]
[327505159,1716129038142,-64543.68783659,0.0004487,30]
[327505160,1716129038154,-803.60000004,0.0004487,30]
[327505161,1716129038166,-710.3011567,0.0004487,30]
[327505162,1716129038177,-133280.31441172,0.0004487,30]
[327505163,1716129038189,-248374.80995656,0.0004487,30]
[327505164,1716129038200,-359.16532702,0.0004487,30]
[327505165,1716129038254,422.55045776,0.0001855,2]
[327505170,1716129038298,666004.083192,0.0001855,2]
[327505172,1716129038422,-422.55045772,0.00025138,2]
[327505173,1716129038433,-158.4380221,0.000273,2]
[327505174,1716129038443,-422.55045772,0.00031725,2]
[327505175,1716129038453,-628.0,0.00043835,30]
[327505176,1716129038462,-75326.89257487,0.0004487,30]
[327505177,1716129038622,-597.90152399,0.0004487,30]
[327505178,1716129038797,-1648.95132,0.00030701,2]
[327505179,1716129038809,-1335.80668,0.00030701,2]
[327505180,1716129038819,-53569.20724559,0.0004487,30]
[327505219,1716129040575,-158.4380221,0.000273,2]
[327505221,1716129040586,-422.55045772,0.00038313,2]
[327505223,1716129040596,-2988.7715202,0.0004487,30]
[327505225,1716129040609,-330.68270518,0.0004487,30]
[327505228,1716129040622,-508.88515547,0.0004487,30]
[327505230,1716129040634,-1250.71525258,0.0004487,30]
[327505232,1716129040646,-867.64194102,0.00044873,20]
[327505233,1716129040656,-867.64194102,0.00044882,20]
[327505235,1716129040666,-867.64194102,0.00044891,20]
[327505237,1716129040676,-500.0,0.00044899,30]
[327505239,1716129040686,-500.0,0.00044899,30]
[327505240,1716129040697,-500.0,0.00044899,30]
[327505241,1716129040707,-891.37,0.00044899,30]
[327505242,1716129040717,-500.0,0.00044899,30]
[327505243,1716129040728,-618.62,0.00044899,30]
[327505244,1716129040738,-427.48,0.00044899,30]
[327505245,1716129040748,-500.0,0.00044899,30]
[327505246,1716129040758,-500.0,0.00044899,30]
[327505247,1716129040768,-500.0,0.00044899,30]
[327505248,1716129040778,-500.0,0.00044899,30]
[327505249,1716129040788,-558.62,0.00044899,30]
[327505250,1716129040799,-608.51,0.00044899,30]
[327505251,1716129040808,-716.65,0.00044899,30]
[327505252,1716129040818,-716.65,0.00044899,30]
[327505253,1716129040828,-179.32,0.00044899,30]
[327505254,1716129040837,-2000.0,0.00044899,2]
[327505255,1716129040847,-500.0,0.00044899,30]
[327505256,1716129040857,-2.13892436,0.00044899,30]
[327505257,1716129040870,-398.40304068,0.00044899,30]
[327505258,1716129040881,-99.45803496,0.00044899,30]
[327505259,1716129040891,-8294.8128,0.000449,2]
[327505260,1716129040900,-16016.67622184,0.000449,2]
[327505261,1716129040912,-225277.78377816,0.000449,2]
[327505262,1716129040922,-1706.5889,0.000449,2]
[327505263,1716129040931,-867.64194102,0.000449,20]
[327505264,1716129040941,-152.39850021,0.000449,20]
[327505265,1716129040950,-6309.28336655,0.000449,2]
[327505266,1716129040960,-338.25048868,0.000449,2]
[327505267,1716129040969,-161.82,0.000449,7]
[327505269,1716129040979,-83.02630678,0.000449,2]
[327505271,1716129040994,-271.26559914,0.000449,2]
[327505273,1716129041004,-1274.61561243,0.00044986,4]
[327505279,1716129041049,-734.26018627,0.00044986,4]
[327505315,1716129043512,-500.0,0.0002978,3]
[327505316,1716129043522,-138.3079347,0.00043835,30]
[327505317,1716129043534,-361.6920653,0.00043835,30]
[327505318,1716129043544,-181.64768223,0.000449,2]
[327505319,1716129043557,-240.90277549,0.000449,2]
[327505320,1716129043566,-648.17522142,0.00044986,4]
[327505321,1716129043577,-714.07502374,0.00044986,4]
[327505322,1716129043589,-1620.48959001,0.00044986,4]
[327505323,1716129043598,-409.50018805,0.00044986,4]
[327505324,1716129043608,-548.73487624,0.00044986,30]
[327505325,1716129043617,-891.37,0.00044996,30]
[327505326,1716129043627,-891.37,0.00044997,30]
[327505327,1716129043636,-891.37,0.00044997,30]
[327505328,1716129043647,-1360.96455903,0.00044998,4]
[327505329,1716129043657,-5018.47744408,0.00044998,4]
[327505330,1716129043666,-6218.39108876,0.00044998,2]
[327505331,1716129043677,-247.69959989,0.00044998,4]
[327505332,1716129043687,-344.33524362,0.00044998,4]
[327505333,1716129043696,-1557.29741032,0.00044998,20]
[327505334,1716129043708,-591.71950457,0.00044998,20]
[327505335,1716129043719,-727.00144282,0.00044998,20]
[327505336,1716129043729,-489.50196776,0.00044998,4]
[327505337,1716129043739,-213.49059611,0.00044998,4]
[327505338,1716129043750,-76.08630907,0.00044998,4]
[327505339,1716129043760,-642.98444126,0.00044998,4]
[327505340,1716129043769,-891.37,0.00044998,30]
[327505341,1716129043779,-166.56898377,0.00044998,30]
[327505342,1716129043799,-724.80101623,0.00044998,30]
[327505343,1716129043809,-560.010784,0.00044999,4]
[327505344,1716129043818,-500.0,0.00044999,30]
[327505345,1716129043827,-500.0,0.00044999,30]
[327505346,1716129043838,-500.0,0.00044999,30]
[327505347,1716129043847,-500.0,0.00044999,30]